Workbook

Sheet Blad1
A1: 1 | B1: H. v d Akker | D1: 11
A2: 2 | B2: B. Bots | D2: 9
A3: 3 | B3: J. v Haaren | C3: 11 | D3: 3
A4: 4 | B4: H. v Helmond | C4: 10 | D4: 4
A5: 5 | B5: T. Hoefnagels | C5: 5 | D5: 15
A6: 6 | B6: M. Hoskins | C6: 4 | D6: 16
A7: 7 | B7: M. v Lierop | C7: 17 | D7: 7
A8: 8 | B8: P. Lintermans
A9: 9 | B9: W. Seijkens
A10: 10 | B10: H. Verbaarschot | C10: 14 | D10: 10
A11: 11 | B11: J. Verwei | C11: 15 | D11: 8
A12: 12 | B12: T. Mastbroek | C12: 13 | D12: 17
A13: 13 | C13: 6 | D13: 1
A14: 14 | C14: 8 | D14: 13
A15: 15 | C15: 9 | D15: 14
A16: 16 | C16: 3 | D16: 5
A17: 17 | C17: 1 | D17: 6
A18: 18 | C18: 16 | D18: 18
A19: 19
A20: 20

Sheet totaal score
C1: Voorjaarswedstrijd 2024
A2: Plaats | B2: Naam | C2: Punten | D2: Gewicht | E2: Punten | F2: Gewicht | G2: Punten | H2: Gewicht | I2: Punten | J2: Gewicht | K2: Totaal punten | L2: Totaal gewicht
A3: 1 | B3: M. Hoskins | C3: =IF(ISERROR(VLOOKUP(B3,'eerste wedstrijd'!B:E,3,FALSE)=0),"",VLOOKUP(B3,'eerste wedstrijd'!B:E,3,FALSE)) -> 2 | D3: =IF(ISERROR(VLOOKUP(B3,'eerste wedstrijd'!B:E,2,FALSE)=0),"",VLOOKUP(B3,'eerste wedstrijd'!B:E,2,FALSE)) -> 3720 | E3: =IF(ISERROR(VLOOKUP(B3,'tweede wedstrijd'!B:D,3,FALSE)=0),"",VLOOKUP(B3,'tweede wedstrijd'!B:D,3,FALSE)) -> 2 | F3: =IF(ISERROR(VLOOKUP(B3,'tweede wedstrijd'!B:C,2,FALSE)=0),"",VLOOKUP(B3,'tweede wedstrijd'!B:C,2,FALSE)) -> 15000 | G3: =IF(ISERROR(VLOOKUP(B3,'derde wedstrijd'!B:E,3,FALSE)=0),"",VLOOKUP(B3,'derde wedstrijd'!B:E,3,FALSE)) -> 0 | H3: =IF(ISERROR(VLOOKUP(B3,'derde wedstrijd'!B:C,2,FALSE)=0),"",VLOOKUP(B3,'derde wedstrijd'!B:C,2,FALSE)) -> 0 | I3: =IF(ISERROR(VLOOKUP(B3,'vierde wedstrijd'!B:E,3,FALSE)=0),"",VLOOKUP(B3,'vierde wedstrijd'!B:E,3,FALSE)) -> 0 | J3: =IF(ISERROR(VLOOKUP(B3,'vierde wedstrijd'!B:C,2,FALSE)=0),"",VLOOKUP(B3,'vierde wedstrijd'!B:C,2,FALSE)) -> 0 | K3: =SUM(C3,E3,G3,I3) -> 4 | L3: =SUM(D3,F3,H3,J3) -> 18720
A4: 2 | B4: P. Lintermans | C4: =IF(ISERROR(VLOOKUP(B4,'eerste wedstrijd'!B:E,3,FALSE)=0),"",VLOOKUP(B4,'eerste wedstrijd'!B:E,3,FALSE)) -> 1 | D4: =IF(ISERROR(VLOOKUP(B4,'eerste wedstrijd'!B:E,2,FALSE)=0),"",VLOOKUP(B4,'eerste wedstrijd'!B:E,2,FALSE)) -> 10600 | E4: =IF(ISERROR(VLOOKUP(B4,'tweede wedstrijd'!B:D,3,FALSE)=0),"",VLOOKUP(B4,'tweede wedstrijd'!B:D,3,FALSE)) -> 4 | F4: =IF(ISERROR(VLOOKUP(B4,'tweede wedstrijd'!B:C,2,FALSE)=0),"",VLOOKUP(B4,'tweede wedstrijd'!B:C,2,FALSE)) -> 12780 | G4: =IF(ISERROR(VLOOKUP(B4,'derde wedstrijd'!B:E,3,FALSE)=0),"",VLOOKUP(B4,'derde wedstrijd'!B:E,3,FALSE)) -> 0 | H4: =IF(ISERROR(VLOOKUP(B4,'derde wedstrijd'!B:C,2,FALSE)=0),"",VLOOKUP(B4,'derde wedstrijd'!B:C,2,FALSE)) -> 0 | I4: =IF(ISERROR(VLOOKUP(B4,'vierde wedstrijd'!B:E,3,FALSE)=0),"",VLOOKUP(B4,'vierde wedstrijd'!B:E,3,FALSE)) -> 0 | J4: =IF(ISERROR(VLOOKUP(B4,'vierde wedstrijd'!B:C,2,FALSE)=0),"",VLOOKUP(B4,'vierde wedstrijd'!B:C,2,FALSE)) -> 0 | K4: =SUM(C4,E4,G4,I4) -> 5 | L4: =SUM(D4,F4,H4,J4) -> 23380
A5: 3 | B5: T. Mastbroek | C5: =IF(ISERROR(VLOOKUP(B5,'eerste wedstrijd'!B:E,3,FALSE)=0),"",VLOOKUP(B5,'eerste wedstrijd'!B:E,3,FALSE)) -> 4 | D5: =IF(ISERROR(VLOOKUP(B5,'eerste wedstrijd'!B:E,2,FALSE)=0),"",VLOOKUP(B5,'eerste wedstrijd'!B:E,2,FALSE)) -> 2125 | E5: =IF(ISERROR(VLOOKUP(B5,'tweede wedstrijd'!B:D,3,FALSE)=0),"",VLOOKUP(B5,'tweede wedstrijd'!B:D,3,FALSE)) -> 3 | F5: =IF(ISERROR(VLOOKUP(B5,'tweede wedstrijd'!B:C,2,FALSE)=0),"",VLOOKUP(B5,'tweede wedstrijd'!B:C,2,FALSE)) -> 13090 | G5: =IF(ISERROR(VLOOKUP(B5,'derde wedstrijd'!B:E,3,FALSE)=0),"",VLOOKUP(B5,'derde wedstrijd'!B:E,3,FALSE)) -> 0 | H5: =IF(ISERROR(VLOOKUP(B5,'derde wedstrijd'!B:C,2,FALSE)=0),"",VLOOKUP(B5,'derde wedstrijd'!B:C,2,FALSE)) -> 0 | I5: =IF(ISERROR(VLOOKUP(B5,'vierde wedstrijd'!B:E,3,FALSE)=0),"",VLOOKUP(B5,'vierde wedstrijd'!B:E,3,FALSE)) -> 0 | J5: =IF(ISERROR(VLOOKUP(B5,'vierde wedstrijd'!B:C,2,FALSE)=0),"",VLOOKUP(B5,'vierde wedstrijd'!B:C,2,FALSE)) -> 0 | K5: =SUM(C5,E5,G5,I5) -> 7 | L5: =SUM(D5,F5,H5,J5) -> 15215
A6: 4 | B6: H. v d Akker | C6: =IF(ISERROR(VLOOKUP(B6,'eerste wedstrijd'!B:E,3,FALSE)=0),"",VLOOKUP(B6,'eerste wedstrijd'!B:E,3,FALSE)) -> 7 | D6: =IF(ISERROR(VLOOKUP(B6,'eerste wedstrijd'!B:E,2,FALSE)=0),"",VLOOKUP(B6,'eerste wedstrijd'!B:E,2,FALSE)) -> 135 | E6: =IF(ISERROR(VLOOKUP(B6,'tweede wedstrijd'!B:D,3,FALSE)=0),"",VLOOKUP(B6,'tweede wedstrijd'!B:D,3,FALSE)) -> 1 | F6: =IF(ISERROR(VLOOKUP(B6,'tweede wedstrijd'!B:C,2,FALSE)=0),"",VLOOKUP(B6,'tweede wedstrijd'!B:C,2,FALSE)) -> 21210 | G6: =IF(ISERROR(VLOOKUP(B6,'derde wedstrijd'!B:E,3,FALSE)=0),"",VLOOKUP(B6,'derde wedstrijd'!B:E,3,FALSE)) -> 0 | H6: =IF(ISERROR(VLOOKUP(B6,'derde wedstrijd'!B:C,2,FALSE)=0),"",VLOOKUP(B6,'derde wedstrijd'!B:C,2,FALSE)) -> 0 | I6: =IF(ISERROR(VLOOKUP(B6,'vierde wedstrijd'!B:E,3,FALSE)=0),"",VLOOKUP(B6,'vierde wedstrijd'!B:E,3,FALSE)) -> 0 | J6: =IF(ISERROR(VLOOKUP(B6,'vierde wedstrijd'!B:C,2,FALSE)=0),"",VLOOKUP(B6,'vierde wedstrijd'!B:C,2,FALSE)) -> 0 | K6: =SUM(C6,E6,G6,I6) -> 8 | L6: =SUM(D6,F6,H6,J6) -> 21345
A7: 5 | B7: H. v Helmond | C7: =IF(ISERROR(VLOOKUP(B7,'eerste wedstrijd'!B:E,3,FALSE)=0),"",VLOOKUP(B7,'eerste wedstrijd'!B:E,3,FALSE)) -> 3 | D7: =IF(ISERROR(VLOOKUP(B7,'eerste wedstrijd'!B:E,2,FALSE)=0),"",VLOOKUP(B7,'eerste wedstrijd'!B:E,2,FALSE)) -> 2965 | E7: =IF(ISERROR(VLOOKUP(B7,'tweede wedstrijd'!B:D,3,FALSE)=0),"",VLOOKUP(B7,'tweede wedstrijd'!B:D,3,FALSE)) -> 5.5 | F7: =IF(ISERROR(VLOOKUP(B7,'tweede wedstrijd'!B:C,2,FALSE)=0),"",VLOOKUP(B7,'tweede wedstrijd'!B:C,2,FALSE)) -> 7225 | G7: =IF(ISERROR(VLOOKUP(B7,'derde wedstrijd'!B:E,3,FALSE)=0),"",VLOOKUP(B7,'derde wedstrijd'!B:E,3,FALSE)) -> 0 | H7: =IF(ISERROR(VLOOKUP(B7,'derde wedstrijd'!B:C,2,FALSE)=0),"",VLOOKUP(B7,'derde wedstrijd'!B:C,2,FALSE)) -> 0 | I7: =IF(ISERROR(VLOOKUP(B7,'vierde wedstrijd'!B:E,3,FALSE)=0),"",VLOOKUP(B7,'vierde wedstrijd'!B:E,3,FALSE)) -> 0 | J7: =IF(ISERROR(VLOOKUP(B7,'vierde wedstrijd'!B:C,2,FALSE)=0),"",VLOOKUP(B7,'vierde wedstrijd'!B:C,2,FALSE)) -> 0 | K7: =SUM(C7,E7,G7,I7) -> 8.5 | L7: =SUM(D7,F7,H7,J7) -> 10190
A8: 6 | B8: J. v Haaren | C8: =IF(ISERROR(VLOOKUP(B8,'eerste wedstrijd'!B:E,3,FALSE)=0),"",VLOOKUP(B8,'eerste wedstrijd'!B:E,3,FALSE)) -> 5.5 | D8: =IF(ISERROR(VLOOKUP(B8,'eerste wedstrijd'!B:E,2,FALSE)=0),"",VLOOKUP(B8,'eerste wedstrijd'!B:E,2,FALSE)) -> 1280 | E8: =IF(ISERROR(VLOOKUP(B8,'tweede wedstrijd'!B:D,3,FALSE)=0),"",VLOOKUP(B8,'tweede wedstrijd'!B:D,3,FALSE)) -> 5 | F8: =IF(ISERROR(VLOOKUP(B8,'tweede wedstrijd'!B:C,2,FALSE)=0),"",VLOOKUP(B8,'tweede wedstrijd'!B:C,2,FALSE)) -> 7915 | G8: =IF(ISERROR(VLOOKUP(B8,'derde wedstrijd'!B:E,3,FALSE)=0),"",VLOOKUP(B8,'derde wedstrijd'!B:E,3,FALSE)) -> 0 | H8: =IF(ISERROR(VLOOKUP(B8,'derde wedstrijd'!B:C,2,FALSE)=0),"",VLOOKUP(B8,'derde wedstrijd'!B:C,2,FALSE)) -> 0 | I8: =IF(ISERROR(VLOOKUP(B8,'vierde wedstrijd'!B:E,3,FALSE)=0),"",VLOOKUP(B8,'vierde wedstrijd'!B:E,3,FALSE)) -> 0 | J8: =IF(ISERROR(VLOOKUP(B8,'vierde wedstrijd'!B:C,2,FALSE)=0),"",VLOOKUP(B8,'vierde wedstrijd'!B:C,2,FALSE)) -> 0 | K8: =SUM(C8,E8,G8,I8) -> 10.5 | L8: =SUM(D8,F8,H8,J8) -> 9195
A9: 7 | B9: M. v Lierop | C9: =IF(ISERROR(VLOOKUP(B9,'eerste wedstrijd'!B:E,3,FALSE)=0),"",VLOOKUP(B9,'eerste wedstrijd'!B:E,3,FALSE)) -> 5 | D9: =IF(ISERROR(VLOOKUP(B9,'eerste wedstrijd'!B:E,2,FALSE)=0),"",VLOOKUP(B9,'eerste wedstrijd'!B:E,2,FALSE)) -> 1395 | E9: =IF(ISERROR(VLOOKUP(B9,'tweede wedstrijd'!B:D,3,FALSE)=0),"",VLOOKUP(B9,'tweede wedstrijd'!B:D,3,FALSE)) -> 6 | F9: =IF(ISERROR(VLOOKUP(B9,'tweede wedstrijd'!B:C,2,FALSE)=0),"",VLOOKUP(B9,'tweede wedstrijd'!B:C,2,FALSE)) -> 4710 | G9: =IF(ISERROR(VLOOKUP(B9,'derde wedstrijd'!B:E,3,FALSE)=0),"",VLOOKUP(B9,'derde wedstrijd'!B:E,3,FALSE)) -> 0 | H9: =IF(ISERROR(VLOOKUP(B9,'derde wedstrijd'!B:C,2,FALSE)=0),"",VLOOKUP(B9,'derde wedstrijd'!B:C,2,FALSE)) -> 0 | I9: =IF(ISERROR(VLOOKUP(B9,'vierde wedstrijd'!B:E,3,FALSE)=0),"",VLOOKUP(B9,'vierde wedstrijd'!B:E,3,FALSE)) -> 0 | J9: =IF(ISERROR(VLOOKUP(B9,'vierde wedstrijd'!B:C,2,FALSE)=0),"",VLOOKUP(B9,'vierde wedstrijd'!B:C,2,FALSE)) -> 0 | K9: =SUM(C9,E9,G9,I9) -> 11 | L9: =SUM(D9,F9,H9,J9) -> 6105
A10: 8 | B10: T. Hoefnagels | C10: =IF(ISERROR(VLOOKUP(B10,'eerste wedstrijd'!B:E,3,FALSE)=0),"",VLOOKUP(B10,'eerste wedstrijd'!B:E,3,FALSE)) -> 6.5 | D10: =IF(ISERROR(VLOOKUP(B10,'eerste wedstrijd'!B:E,2,FALSE)=0),"",VLOOKUP(B10,'eerste wedstrijd'!B:E,2,FALSE)) -> 815 | E10: =IF(ISERROR(VLOOKUP(B10,'tweede wedstrijd'!B:D,3,FALSE)=0),"",VLOOKUP(B10,'tweede wedstrijd'!B:D,3,FALSE)) -> 6.5 | F10: =IF(ISERROR(VLOOKUP(B10,'tweede wedstrijd'!B:C,2,FALSE)=0),"",VLOOKUP(B10,'tweede wedstrijd'!B:C,2,FALSE)) -> 4080 | G10: =IF(ISERROR(VLOOKUP(B10,'derde wedstrijd'!B:E,3,FALSE)=0),"",VLOOKUP(B10,'derde wedstrijd'!B:E,3,FALSE)) -> 0 | H10: =IF(ISERROR(VLOOKUP(B10,'derde wedstrijd'!B:C,2,FALSE)=0),"",VLOOKUP(B10,'derde wedstrijd'!B:C,2,FALSE)) -> 0 | I10: =IF(ISERROR(VLOOKUP(B10,'vierde wedstrijd'!B:E,3,FALSE)=0),"",VLOOKUP(B10,'vierde wedstrijd'!B:E,3,FALSE)) -> 0 | J10: =IF(ISERROR(VLOOKUP(B10,'vierde wedstrijd'!B:C,2,FALSE)=0),"",VLOOKUP(B10,'vierde wedstrijd'!B:C,2,FALSE)) -> 0 | K10: =SUM(C10,E10,G10,I10) -> 13 | L10: =SUM(D10,F10,H10,J10) -> 4895
A11: 9 | B11: B. Bots | C11: =IF(ISERROR(VLOOKUP(B11,'eerste wedstrijd'!B:E,3,FALSE)=0),"",VLOOKUP(B11,'eerste wedstrijd'!B:E,3,FALSE)) -> 7 | D11: =IF(ISERROR(VLOOKUP(B11,'eerste wedstrijd'!B:E,2,FALSE)=0),"",VLOOKUP(B11,'eerste wedstrijd'!B:E,2,FALSE)) -> 135 | E11: =IF(ISERROR(VLOOKUP(B11,'tweede wedstrijd'!B:D,3,FALSE)=0),"",VLOOKUP(B11,'tweede wedstrijd'!B:D,3,FALSE)) -> 7 | F11: =IF(ISERROR(VLOOKUP(B11,'tweede wedstrijd'!B:C,2,FALSE)=0),"",VLOOKUP(B11,'tweede wedstrijd'!B:C,2,FALSE)) -> 3165 | G11: =IF(ISERROR(VLOOKUP(B11,'derde wedstrijd'!B:E,3,FALSE)=0),"",VLOOKUP(B11,'derde wedstrijd'!B:E,3,FALSE)) -> 0 | H11: =IF(ISERROR(VLOOKUP(B11,'derde wedstrijd'!B:C,2,FALSE)=0),"",VLOOKUP(B11,'derde wedstrijd'!B:C,2,FALSE)) -> 0 | I11: =IF(ISERROR(VLOOKUP(B11,'vierde wedstrijd'!B:E,3,FALSE)=0),"",VLOOKUP(B11,'vierde wedstrijd'!B:E,3,FALSE)) -> 0 | J11: =IF(ISERROR(VLOOKUP(B11,'vierde wedstrijd'!B:C,2,FALSE)=0),"",VLOOKUP(B11,'vierde wedstrijd'!B:C,2,FALSE)) -> 0 | K11: =SUM(C11,E11,G11,I11) -> 14 | L11: =SUM(D11,F11,H11,J11) -> 3300
A12: 10 | B12: W. Seijkens | C12: =IF(ISERROR(VLOOKUP(B12,'eerste wedstrijd'!B:E,3,FALSE)=0),"",VLOOKUP(B12,'eerste wedstrijd'!B:E,3,FALSE)) -> 6 | D12: =IF(ISERROR(VLOOKUP(B12,'eerste wedstrijd'!B:E,2,FALSE)=0),"",VLOOKUP(B12,'eerste wedstrijd'!B:E,2,FALSE)) -> 1205 | E12: =IF(ISERROR(VLOOKUP(B12,'tweede wedstrijd'!B:D,3,FALSE)=0),"",VLOOKUP(B12,'tweede wedstrijd'!B:D,3,FALSE)) -> 9 | F12: =IF(ISERROR(VLOOKUP(B12,'tweede wedstrijd'!B:C,2,FALSE)=0),"",VLOOKUP(B12,'tweede wedstrijd'!B:C,2,FALSE)) -> 0 | G12: =IF(ISERROR(VLOOKUP(B12,'derde wedstrijd'!B:E,3,FALSE)=0),"",VLOOKUP(B12,'derde wedstrijd'!B:E,3,FALSE)) -> 0 | H12: =IF(ISERROR(VLOOKUP(B12,'derde wedstrijd'!B:C,2,FALSE)=0),"",VLOOKUP(B12,'derde wedstrijd'!B:C,2,FALSE)) -> 0 | I12: =IF(ISERROR(VLOOKUP(B12,'vierde wedstrijd'!B:E,3,FALSE)=0),"",VLOOKUP(B12,'vierde wedstrijd'!B:E,3,FALSE)) -> 0 | J12: =IF(ISERROR(VLOOKUP(B12,'vierde wedstrijd'!B:C,2,FALSE)=0),"",VLOOKUP(B12,'vierde wedstrijd'!B:C,2,FALSE)) -> 0 | K12: =SUM(C12,E12,G12,I12) -> 15 | L12: =SUM(D12,F12,H12,J12) -> 1205
A13: 11 | B13: H. Verbaarschot | C13: =IF(ISERROR(VLOOKUP(B13,'eerste wedstrijd'!B:E,3,FALSE)=0),"",VLOOKUP(B13,'eerste wedstrijd'!B:E,3,FALSE)) -> 8 | D13: =IF(ISERROR(VLOOKUP(B13,'eerste wedstrijd'!B:E,2,FALSE)=0),"",VLOOKUP(B13,'eerste wedstrijd'!B:E,2,FALSE)) -> 115 | E13: =IF(ISERROR(VLOOKUP(B13,'tweede wedstrijd'!B:D,3,FALSE)=0),"",VLOOKUP(B13,'tweede wedstrijd'!B:D,3,FALSE)) -> 7.5 | F13: =IF(ISERROR(VLOOKUP(B13,'tweede wedstrijd'!B:C,2,FALSE)=0),"",VLOOKUP(B13,'tweede wedstrijd'!B:C,2,FALSE)) -> 2835 | G13: =IF(ISERROR(VLOOKUP(B13,'derde wedstrijd'!B:E,3,FALSE)=0),"",VLOOKUP(B13,'derde wedstrijd'!B:E,3,FALSE)) -> 0 | H13: =IF(ISERROR(VLOOKUP(B13,'derde wedstrijd'!B:C,2,FALSE)=0),"",VLOOKUP(B13,'derde wedstrijd'!B:C,2,FALSE)) -> 0 | I13: =IF(ISERROR(VLOOKUP(B13,'vierde wedstrijd'!B:E,3,FALSE)=0),"",VLOOKUP(B13,'vierde wedstrijd'!B:E,3,FALSE)) -> 0 | J13: =IF(ISERROR(VLOOKUP(B13,'vierde wedstrijd'!B:C,2,FALSE)=0),"",VLOOKUP(B13,'vierde wedstrijd'!B:C,2,FALSE)) -> 0 | K13: =SUM(C13,E13,G13,I13) -> 15.5 | L13: =SUM(D13,F13,H13,J13) -> 2950
A14: 12 | C14: =IF(ISERROR(VLOOKUP(B14,'eerste wedstrijd'!B:E,3,FALSE)=0),"",VLOOKUP(B14,'eerste wedstrijd'!B:E,3,FALSE)) ->  | D14: =IF(ISERROR(VLOOKUP(B14,'eerste wedstrijd'!B:E,2,FALSE)=0),"",VLOOKUP(B14,'eerste wedstrijd'!B:E,2,FALSE)) ->  | E14: =IF(ISERROR(VLOOKUP(B14,'tweede wedstrijd'!B:D,3,FALSE)=0),"",VLOOKUP(B14,'tweede wedstrijd'!B:D,3,FALSE)) ->  | F14: =IF(ISERROR(VLOOKUP(B14,'tweede wedstrijd'!B:C,2,FALSE)=0),"",VLOOKUP(B14,'tweede wedstrijd'!B:C,2,FALSE)) ->  | G14: =IF(ISERROR(VLOOKUP(B14,'derde wedstrijd'!B:E,3,FALSE)=0),"",VLOOKUP(B14,'derde wedstrijd'!B:E,3,FALSE)) ->  | H14: =IF(ISERROR(VLOOKUP(B14,'derde wedstrijd'!B:C,2,FALSE)=0),"",VLOOKUP(B14,'derde wedstrijd'!B:C,2,FALSE)) ->  | I14: =IF(ISERROR(VLOOKUP(B14,'vierde wedstrijd'!B:E,3,FALSE)=0),"",VLOOKUP(B14,'vierde wedstrijd'!B:E,3,FALSE)) ->  | J14: =IF(ISERROR(VLOOKUP(B14,'vierde wedstrijd'!B:C,2,FALSE)=0),"",VLOOKUP(B14,'vierde wedstrijd'!B:C,2,FALSE)) -> 
A15: 13 | C15: =IF(ISERROR(VLOOKUP(B15,'eerste wedstrijd'!B:E,3,FALSE)=0),"",VLOOKUP(B15,'eerste wedstrijd'!B:E,3,FALSE)) ->  | D15: =IF(ISERROR(VLOOKUP(B15,'eerste wedstrijd'!B:E,2,FALSE)=0),"",VLOOKUP(B15,'eerste wedstrijd'!B:E,2,FALSE)) ->  | E15: =IF(ISERROR(VLOOKUP(B15,'tweede wedstrijd'!B:D,3,FALSE)=0),"",VLOOKUP(B15,'tweede wedstrijd'!B:D,3,FALSE)) ->  | F15: =IF(ISERROR(VLOOKUP(B15,'tweede wedstrijd'!B:C,2,FALSE)=0),"",VLOOKUP(B15,'tweede wedstrijd'!B:C,2,FALSE)) ->  | G15: =IF(ISERROR(VLOOKUP(B15,'derde wedstrijd'!B:E,3,FALSE)=0),"",VLOOKUP(B15,'derde wedstrijd'!B:E,3,FALSE)) ->  | H15: =IF(ISERROR(VLOOKUP(B15,'derde wedstrijd'!B:C,2,FALSE)=0),"",VLOOKUP(B15,'derde wedstrijd'!B:C,2,FALSE)) ->  | I15: =IF(ISERROR(VLOOKUP(B15,'vierde wedstrijd'!B:E,3,FALSE)=0),"",VLOOKUP(B15,'vierde wedstrijd'!B:E,3,FALSE)) ->  | J15: =IF(ISERROR(VLOOKUP(B15,'vierde wedstrijd'!B:C,2,FALSE)=0),"",VLOOKUP(B15,'vierde wedstrijd'!B:C,2,FALSE)) -> 
A16: 14 | C16: =IF(ISERROR(VLOOKUP(B16,'eerste wedstrijd'!B:E,3,FALSE)=0),"",VLOOKUP(B16,'eerste wedstrijd'!B:E,3,FALSE)) ->  | D16: =IF(ISERROR(VLOOKUP(B16,'eerste wedstrijd'!B:E,2,FALSE)=0),"",VLOOKUP(B16,'eerste wedstrijd'!B:E,2,FALSE)) ->  | E16: =IF(ISERROR(VLOOKUP(B16,'tweede wedstrijd'!B:D,3,FALSE)=0),"",VLOOKUP(B16,'tweede wedstrijd'!B:D,3,FALSE)) ->  | F16: =IF(ISERROR(VLOOKUP(B16,'tweede wedstrijd'!B:C,2,FALSE)=0),"",VLOOKUP(B16,'tweede wedstrijd'!B:C,2,FALSE)) ->  | G16: =IF(ISERROR(VLOOKUP(B16,'derde wedstrijd'!B:E,3,FALSE)=0),"",VLOOKUP(B16,'derde wedstrijd'!B:E,3,FALSE)) ->  | H16: =IF(ISERROR(VLOOKUP(B16,'derde wedstrijd'!B:C,2,FALSE)=0),"",VLOOKUP(B16,'derde wedstrijd'!B:C,2,FALSE)) ->  | I16: =IF(ISERROR(VLOOKUP(B16,'vierde wedstrijd'!B:E,3,FALSE)=0),"",VLOOKUP(B16,'vierde wedstrijd'!B:E,3,FALSE)) ->  | J16: =IF(ISERROR(VLOOKUP(B16,'vierde wedstrijd'!B:C,2,FALSE)=0),"",VLOOKUP(B16,'vierde wedstrijd'!B:C,2,FALSE)) -> 
A17: 15 | C17: =IF(ISERROR(VLOOKUP(B17,'eerste wedstrijd'!B:E,3,FALSE)=0),"",VLOOKUP(B17,'eerste wedstrijd'!B:E,3,FALSE)) ->  | D17: =IF(ISERROR(VLOOKUP(B17,'eerste wedstrijd'!B:E,2,FALSE)=0),"",VLOOKUP(B17,'eerste wedstrijd'!B:E,2,FALSE)) ->  | E17: =IF(ISERROR(VLOOKUP(B17,'tweede wedstrijd'!B:D,3,FALSE)=0),"",VLOOKUP(B17,'tweede wedstrijd'!B:D,3,FALSE)) ->  | F17: =IF(ISERROR(VLOOKUP(B17,'tweede wedstrijd'!B:C,2,FALSE)=0),"",VLOOKUP(B17,'tweede wedstrijd'!B:C,2,FALSE)) ->  | G17: =IF(ISERROR(VLOOKUP(B17,'derde wedstrijd'!B:E,3,FALSE)=0),"",VLOOKUP(B17,'derde wedstrijd'!B:E,3,FALSE)) ->  | H17: =IF(ISERROR(VLOOKUP(B17,'derde wedstrijd'!B:C,2,FALSE)=0),"",VLOOKUP(B17,'derde wedstrijd'!B:C,2,FALSE)) ->  | I17: =IF(ISERROR(VLOOKUP(B17,'vierde wedstrijd'!B:E,3,FALSE)=0),"",VLOOKUP(B17,'vierde wedstrijd'!B:E,3,FALSE)) ->  | J17: =IF(ISERROR(VLOOKUP(B17,'vierde wedstrijd'!B:C,2,FALSE)=0),"",VLOOKUP(B17,'vierde wedstrijd'!B:C,2,FALSE)) -> 
A18: 16 | C18: =IF(ISERROR(VLOOKUP(B18,'eerste wedstrijd'!B:E,3,FALSE)=0),"",VLOOKUP(B18,'eerste wedstrijd'!B:E,3,FALSE)) ->  | D18: =IF(ISERROR(VLOOKUP(B18,'eerste wedstrijd'!B:E,2,FALSE)=0),"",VLOOKUP(B18,'eerste wedstrijd'!B:E,2,FALSE)) ->  | E18: =IF(ISERROR(VLOOKUP(B18,'tweede wedstrijd'!B:D,3,FALSE)=0),"",VLOOKUP(B18,'tweede wedstrijd'!B:D,3,FALSE)) ->  | F18: =IF(ISERROR(VLOOKUP(B18,'tweede wedstrijd'!B:C,2,FALSE)=0),"",VLOOKUP(B18,'tweede wedstrijd'!B:C,2,FALSE)) ->  | G18: =IF(ISERROR(VLOOKUP(B18,'derde wedstrijd'!B:E,3,FALSE)=0),"",VLOOKUP(B18,'derde wedstrijd'!B:E,3,FALSE)) ->  | H18: =IF(ISERROR(VLOOKUP(B18,'derde wedstrijd'!B:C,2,FALSE)=0),"",VLOOKUP(B18,'derde wedstrijd'!B:C,2,FALSE)) ->  | I18: =IF(ISERROR(VLOOKUP(B18,'vierde wedstrijd'!B:E,3,FALSE)=0),"",VLOOKUP(B18,'vierde wedstrijd'!B:E,3,FALSE)) ->  | J18: =IF(ISERROR(VLOOKUP(B18,'vierde wedstrijd'!B:C,2,FALSE)=0),"",VLOOKUP(B18,'vierde wedstrijd'!B:C,2,FALSE)) -> 

Sheet score min 1 wedstrijd
C1: Voorjaarswedstrijd 2024
A2: Plaats | B2: Naam | C2: Punten | D2: Gewicht | E2: Punten | F2: Gewicht | G2: Punten | H2: Gewicht | I2: Punten | J2: Gewicht | K2: Totaal punten | L2: Totaal gewicht
A3: 1 | B3: P. Lintermans | C3: =IF(ISERROR(VLOOKUP(B3,'eerste wedstrijd'!B:E,3,FALSE)=0),"",VLOOKUP(B3,'eerste wedstrijd'!B:E,3,FALSE)) -> 1 | D3: =IF(ISERROR(VLOOKUP(B3,'eerste wedstrijd'!B:E,2,FALSE)=0),"",VLOOKUP(B3,'eerste wedstrijd'!B:E,2,FALSE)) -> 10600 | E3: =IF(ISERROR(VLOOKUP(B3,'tweede wedstrijd'!B:D,3,FALSE)=0),"",VLOOKUP(B3,'tweede wedstrijd'!B:D,3,FALSE)) -> 4 | F3: =IF(ISERROR(VLOOKUP(B3,'tweede wedstrijd'!B:C,2,FALSE)=0),"",VLOOKUP(B3,'tweede wedstrijd'!B:C,2,FALSE)) -> 12780 | G3: =IF(ISERROR(VLOOKUP(B3,'derde wedstrijd'!B:E,3,FALSE)=0),"",VLOOKUP(B3,'derde wedstrijd'!B:E,3,FALSE)) -> 0 | H3: =IF(ISERROR(VLOOKUP(B3,'derde wedstrijd'!B:C,2,FALSE)=0),"",VLOOKUP(B3,'derde wedstrijd'!B:C,2,FALSE)) -> 0 | I3: =IF(ISERROR(VLOOKUP(B3,'vierde wedstrijd'!B:E,3,FALSE)=0),"",VLOOKUP(B3,'vierde wedstrijd'!B:E,3,FALSE)) -> 0 | J3: =IF(ISERROR(VLOOKUP(B3,'vierde wedstrijd'!B:C,2,FALSE)=0),"",VLOOKUP(B3,'vierde wedstrijd'!B:C,2,FALSE)) -> 0 | K3: =SUM(C3,E3,G3,I3) -> 5 | L3: =SUM(D3,F3,H3,J3) -> 23380
A4: 2 | B4: M. Hoskins | C4: =IF(ISERROR(VLOOKUP(B4,'eerste wedstrijd'!B:E,3,FALSE)=0),"",VLOOKUP(B4,'eerste wedstrijd'!B:E,3,FALSE)) -> 2 | D4: =IF(ISERROR(VLOOKUP(B4,'eerste wedstrijd'!B:E,2,FALSE)=0),"",VLOOKUP(B4,'eerste wedstrijd'!B:E,2,FALSE)) -> 3720 | E4: =IF(ISERROR(VLOOKUP(B4,'tweede wedstrijd'!B:D,3,FALSE)=0),"",VLOOKUP(B4,'tweede wedstrijd'!B:D,3,FALSE)) -> 2 | F4: =IF(ISERROR(VLOOKUP(B4,'tweede wedstrijd'!B:C,2,FALSE)=0),"",VLOOKUP(B4,'tweede wedstrijd'!B:C,2,FALSE)) -> 15000 | G4: =IF(ISERROR(VLOOKUP(B4,'derde wedstrijd'!B:E,3,FALSE)=0),"",VLOOKUP(B4,'derde wedstrijd'!B:E,3,FALSE)) -> 0 | H4: =IF(ISERROR(VLOOKUP(B4,'derde wedstrijd'!B:C,2,FALSE)=0),"",VLOOKUP(B4,'derde wedstrijd'!B:C,2,FALSE)) -> 0 | I4: =IF(ISERROR(VLOOKUP(B4,'vierde wedstrijd'!B:E,3,FALSE)=0),"",VLOOKUP(B4,'vierde wedstrijd'!B:E,3,FALSE)) -> 0 | J4: =IF(ISERROR(VLOOKUP(B4,'vierde wedstrijd'!B:C,2,FALSE)=0),"",VLOOKUP(B4,'vierde wedstrijd'!B:C,2,FALSE)) -> 0 | K4: 4 | L4: 18720
A5: 3 | B5: H. v Helmond | C5: =IF(ISERROR(VLOOKUP(B5,'eerste wedstrijd'!B:E,3,FALSE)=0),"",VLOOKUP(B5,'eerste wedstrijd'!B:E,3,FALSE)) -> 3 | D5: =IF(ISERROR(VLOOKUP(B5,'eerste wedstrijd'!B:E,2,FALSE)=0),"",VLOOKUP(B5,'eerste wedstrijd'!B:E,2,FALSE)) -> 2965 | E5: =IF(ISERROR(VLOOKUP(B5,'tweede wedstrijd'!B:D,3,FALSE)=0),"",VLOOKUP(B5,'tweede wedstrijd'!B:D,3,FALSE)) -> 5.5 | F5: =IF(ISERROR(VLOOKUP(B5,'tweede wedstrijd'!B:C,2,FALSE)=0),"",VLOOKUP(B5,'tweede wedstrijd'!B:C,2,FALSE)) -> 7225 | G5: =IF(ISERROR(VLOOKUP(B5,'derde wedstrijd'!B:E,3,FALSE)=0),"",VLOOKUP(B5,'derde wedstrijd'!B:E,3,FALSE)) -> 0 | H5: =IF(ISERROR(VLOOKUP(B5,'derde wedstrijd'!B:C,2,FALSE)=0),"",VLOOKUP(B5,'derde wedstrijd'!B:C,2,FALSE)) -> 0 | I5: =IF(ISERROR(VLOOKUP(B5,'vierde wedstrijd'!B:E,3,FALSE)=0),"",VLOOKUP(B5,'vierde wedstrijd'!B:E,3,FALSE)) -> 0 | J5: =IF(ISERROR(VLOOKUP(B5,'vierde wedstrijd'!B:C,2,FALSE)=0),"",VLOOKUP(B5,'vierde wedstrijd'!B:C,2,FALSE)) -> 0 | K5: 8.5 | L5: 10190
A6: 4 | B6: T. Mastbroek | C6: =IF(ISERROR(VLOOKUP(B6,'eerste wedstrijd'!B:E,3,FALSE)=0),"",VLOOKUP(B6,'eerste wedstrijd'!B:E,3,FALSE)) -> 4 | D6: =IF(ISERROR(VLOOKUP(B6,'eerste wedstrijd'!B:E,2,FALSE)=0),"",VLOOKUP(B6,'eerste wedstrijd'!B:E,2,FALSE)) -> 2125 | E6: =IF(ISERROR(VLOOKUP(B6,'tweede wedstrijd'!B:D,3,FALSE)=0),"",VLOOKUP(B6,'tweede wedstrijd'!B:D,3,FALSE)) -> 3 | F6: =IF(ISERROR(VLOOKUP(B6,'tweede wedstrijd'!B:C,2,FALSE)=0),"",VLOOKUP(B6,'tweede wedstrijd'!B:C,2,FALSE)) -> 13090 | G6: =IF(ISERROR(VLOOKUP(B6,'derde wedstrijd'!B:E,3,FALSE)=0),"",VLOOKUP(B6,'derde wedstrijd'!B:E,3,FALSE)) -> 0 | H6: =IF(ISERROR(VLOOKUP(B6,'derde wedstrijd'!B:C,2,FALSE)=0),"",VLOOKUP(B6,'derde wedstrijd'!B:C,2,FALSE)) -> 0 | I6: =IF(ISERROR(VLOOKUP(B6,'vierde wedstrijd'!B:E,3,FALSE)=0),"",VLOOKUP(B6,'vierde wedstrijd'!B:E,3,FALSE)) -> 0 | J6: =IF(ISERROR(VLOOKUP(B6,'vierde wedstrijd'!B:C,2,FALSE)=0),"",VLOOKUP(B6,'vierde wedstrijd'!B:C,2,FALSE)) -> 0 | K6: 7 | L6: 15215
A7: 5 | B7: M. v Lierop | C7: =IF(ISERROR(VLOOKUP(B7,'eerste wedstrijd'!B:E,3,FALSE)=0),"",VLOOKUP(B7,'eerste wedstrijd'!B:E,3,FALSE)) -> 5 | D7: =IF(ISERROR(VLOOKUP(B7,'eerste wedstrijd'!B:E,2,FALSE)=0),"",VLOOKUP(B7,'eerste wedstrijd'!B:E,2,FALSE)) -> 1395 | E7: =IF(ISERROR(VLOOKUP(B7,'tweede wedstrijd'!B:D,3,FALSE)=0),"",VLOOKUP(B7,'tweede wedstrijd'!B:D,3,FALSE)) -> 6 | F7: =IF(ISERROR(VLOOKUP(B7,'tweede wedstrijd'!B:C,2,FALSE)=0),"",VLOOKUP(B7,'tweede wedstrijd'!B:C,2,FALSE)) -> 4710 | G7: =IF(ISERROR(VLOOKUP(B7,'derde wedstrijd'!B:E,3,FALSE)=0),"",VLOOKUP(B7,'derde wedstrijd'!B:E,3,FALSE)) -> 0 | H7: =IF(ISERROR(VLOOKUP(B7,'derde wedstrijd'!B:C,2,FALSE)=0),"",VLOOKUP(B7,'derde wedstrijd'!B:C,2,FALSE)) -> 0 | I7: =IF(ISERROR(VLOOKUP(B7,'vierde wedstrijd'!B:E,3,FALSE)=0),"",VLOOKUP(B7,'vierde wedstrijd'!B:E,3,FALSE)) -> 0 | J7: =IF(ISERROR(VLOOKUP(B7,'vierde wedstrijd'!B:C,2,FALSE)=0),"",VLOOKUP(B7,'vierde wedstrijd'!B:C,2,FALSE)) -> 0 | K7: 11 | L7: 6105
A8: 6 | B8: J. v Haaren | C8: =IF(ISERROR(VLOOKUP(B8,'eerste wedstrijd'!B:E,3,FALSE)=0),"",VLOOKUP(B8,'eerste wedstrijd'!B:E,3,FALSE)) -> 5.5 | D8: =IF(ISERROR(VLOOKUP(B8,'eerste wedstrijd'!B:E,2,FALSE)=0),"",VLOOKUP(B8,'eerste wedstrijd'!B:E,2,FALSE)) -> 1280 | E8: =IF(ISERROR(VLOOKUP(B8,'tweede wedstrijd'!B:D,3,FALSE)=0),"",VLOOKUP(B8,'tweede wedstrijd'!B:D,3,FALSE)) -> 5 | F8: =IF(ISERROR(VLOOKUP(B8,'tweede wedstrijd'!B:C,2,FALSE)=0),"",VLOOKUP(B8,'tweede wedstrijd'!B:C,2,FALSE)) -> 7915 | G8: =IF(ISERROR(VLOOKUP(B8,'derde wedstrijd'!B:E,3,FALSE)=0),"",VLOOKUP(B8,'derde wedstrijd'!B:E,3,FALSE)) -> 0 | H8: =IF(ISERROR(VLOOKUP(B8,'derde wedstrijd'!B:C,2,FALSE)=0),"",VLOOKUP(B8,'derde wedstrijd'!B:C,2,FALSE)) -> 0 | I8: =IF(ISERROR(VLOOKUP(B8,'vierde wedstrijd'!B:E,3,FALSE)=0),"",VLOOKUP(B8,'vierde wedstrijd'!B:E,3,FALSE)) -> 0 | J8: =IF(ISERROR(VLOOKUP(B8,'vierde wedstrijd'!B:C,2,FALSE)=0),"",VLOOKUP(B8,'vierde wedstrijd'!B:C,2,FALSE)) -> 0 | K8: 10.5 | L8: 9195
A9: 7 | B9: W. Seijkens | C9: =IF(ISERROR(VLOOKUP(B9,'eerste wedstrijd'!B:E,3,FALSE)=0),"",VLOOKUP(B9,'eerste wedstrijd'!B:E,3,FALSE)) -> 6 | D9: =IF(ISERROR(VLOOKUP(B9,'eerste wedstrijd'!B:E,2,FALSE)=0),"",VLOOKUP(B9,'eerste wedstrijd'!B:E,2,FALSE)) -> 1205 | E9: =IF(ISERROR(VLOOKUP(B9,'tweede wedstrijd'!B:D,3,FALSE)=0),"",VLOOKUP(B9,'tweede wedstrijd'!B:D,3,FALSE)) -> 9 | F9: =IF(ISERROR(VLOOKUP(B9,'tweede wedstrijd'!B:C,2,FALSE)=0),"",VLOOKUP(B9,'tweede wedstrijd'!B:C,2,FALSE)) -> 0 | G9: =IF(ISERROR(VLOOKUP(B9,'derde wedstrijd'!B:E,3,FALSE)=0),"",VLOOKUP(B9,'derde wedstrijd'!B:E,3,FALSE)) -> 0 | H9: =IF(ISERROR(VLOOKUP(B9,'derde wedstrijd'!B:C,2,FALSE)=0),"",VLOOKUP(B9,'derde wedstrijd'!B:C,2,FALSE)) -> 0 | I9: =IF(ISERROR(VLOOKUP(B9,'vierde wedstrijd'!B:E,3,FALSE)=0),"",VLOOKUP(B9,'vierde wedstrijd'!B:E,3,FALSE)) -> 0 | J9: =IF(ISERROR(VLOOKUP(B9,'vierde wedstrijd'!B:C,2,FALSE)=0),"",VLOOKUP(B9,'vierde wedstrijd'!B:C,2,FALSE)) -> 0 | K9: 15 | L9: 1205
A10: 8 | B10: T. Hoefnagels | C10: =IF(ISERROR(VLOOKUP(B10,'eerste wedstrijd'!B:E,3,FALSE)=0),"",VLOOKUP(B10,'eerste wedstrijd'!B:E,3,FALSE)) -> 6.5 | D10: =IF(ISERROR(VLOOKUP(B10,'eerste wedstrijd'!B:E,2,FALSE)=0),"",VLOOKUP(B10,'eerste wedstrijd'!B:E,2,FALSE)) -> 815 | E10: =IF(ISERROR(VLOOKUP(B10,'tweede wedstrijd'!B:D,3,FALSE)=0),"",VLOOKUP(B10,'tweede wedstrijd'!B:D,3,FALSE)) -> 6.5 | F10: =IF(ISERROR(VLOOKUP(B10,'tweede wedstrijd'!B:C,2,FALSE)=0),"",VLOOKUP(B10,'tweede wedstrijd'!B:C,2,FALSE)) -> 4080 | G10: =IF(ISERROR(VLOOKUP(B10,'derde wedstrijd'!B:E,3,FALSE)=0),"",VLOOKUP(B10,'derde wedstrijd'!B:E,3,FALSE)) -> 0 | H10: =IF(ISERROR(VLOOKUP(B10,'derde wedstrijd'!B:C,2,FALSE)=0),"",VLOOKUP(B10,'derde wedstrijd'!B:C,2,FALSE)) -> 0 | I10: =IF(ISERROR(VLOOKUP(B10,'vierde wedstrijd'!B:E,3,FALSE)=0),"",VLOOKUP(B10,'vierde wedstrijd'!B:E,3,FALSE)) -> 0 | J10: =IF(ISERROR(VLOOKUP(B10,'vierde wedstrijd'!B:C,2,FALSE)=0),"",VLOOKUP(B10,'vierde wedstrijd'!B:C,2,FALSE)) -> 0 | K10: 13 | L10: 4895
A11: 9 | B11: B. Bots | C11: =IF(ISERROR(VLOOKUP(B11,'eerste wedstrijd'!B:E,3,FALSE)=0),"",VLOOKUP(B11,'eerste wedstrijd'!B:E,3,FALSE)) -> 7 | D11: =IF(ISERROR(VLOOKUP(B11,'eerste wedstrijd'!B:E,2,FALSE)=0),"",VLOOKUP(B11,'eerste wedstrijd'!B:E,2,FALSE)) -> 135 | E11: =IF(ISERROR(VLOOKUP(B11,'tweede wedstrijd'!B:D,3,FALSE)=0),"",VLOOKUP(B11,'tweede wedstrijd'!B:D,3,FALSE)) -> 7 | F11: =IF(ISERROR(VLOOKUP(B11,'tweede wedstrijd'!B:C,2,FALSE)=0),"",VLOOKUP(B11,'tweede wedstrijd'!B:C,2,FALSE)) -> 3165 | G11: =IF(ISERROR(VLOOKUP(B11,'derde wedstrijd'!B:E,3,FALSE)=0),"",VLOOKUP(B11,'derde wedstrijd'!B:E,3,FALSE)) -> 0 | H11: =IF(ISERROR(VLOOKUP(B11,'derde wedstrijd'!B:C,2,FALSE)=0),"",VLOOKUP(B11,'derde wedstrijd'!B:C,2,FALSE)) -> 0 | I11: =IF(ISERROR(VLOOKUP(B11,'vierde wedstrijd'!B:E,3,FALSE)=0),"",VLOOKUP(B11,'vierde wedstrijd'!B:E,3,FALSE)) -> 0 | J11: =IF(ISERROR(VLOOKUP(B11,'vierde wedstrijd'!B:C,2,FALSE)=0),"",VLOOKUP(B11,'vierde wedstrijd'!B:C,2,FALSE)) -> 0 | K11: 14 | L11: 3300
A12: 10 | B12: H. v d Akker | C12: =IF(ISERROR(VLOOKUP(B12,'eerste wedstrijd'!B:E,3,FALSE)=0),"",VLOOKUP(B12,'eerste wedstrijd'!B:E,3,FALSE)) -> 7 | D12: =IF(ISERROR(VLOOKUP(B12,'eerste wedstrijd'!B:E,2,FALSE)=0),"",VLOOKUP(B12,'eerste wedstrijd'!B:E,2,FALSE)) -> 135 | E12: =IF(ISERROR(VLOOKUP(B12,'tweede wedstrijd'!B:D,3,FALSE)=0),"",VLOOKUP(B12,'tweede wedstrijd'!B:D,3,FALSE)) -> 1 | F12: =IF(ISERROR(VLOOKUP(B12,'tweede wedstrijd'!B:C,2,FALSE)=0),"",VLOOKUP(B12,'tweede wedstrijd'!B:C,2,FALSE)) -> 21210 | G12: =IF(ISERROR(VLOOKUP(B12,'derde wedstrijd'!B:E,3,FALSE)=0),"",VLOOKUP(B12,'derde wedstrijd'!B:E,3,FALSE)) -> 0 | H12: =IF(ISERROR(VLOOKUP(B12,'derde wedstrijd'!B:C,2,FALSE)=0),"",VLOOKUP(B12,'derde wedstrijd'!B:C,2,FALSE)) -> 0 | I12: =IF(ISERROR(VLOOKUP(B12,'vierde wedstrijd'!B:E,3,FALSE)=0),"",VLOOKUP(B12,'vierde wedstrijd'!B:E,3,FALSE)) -> 0 | J12: =IF(ISERROR(VLOOKUP(B12,'vierde wedstrijd'!B:C,2,FALSE)=0),"",VLOOKUP(B12,'vierde wedstrijd'!B:C,2,FALSE)) -> 0 | K12: 8 | L12: 21345
A13: 11 | B13: H. Verbaarschot | C13: =IF(ISERROR(VLOOKUP(B13,'eerste wedstrijd'!B:E,3,FALSE)=0),"",VLOOKUP(B13,'eerste wedstrijd'!B:E,3,FALSE)) -> 8 | D13: =IF(ISERROR(VLOOKUP(B13,'eerste wedstrijd'!B:E,2,FALSE)=0),"",VLOOKUP(B13,'eerste wedstrijd'!B:E,2,FALSE)) -> 115 | E13: =IF(ISERROR(VLOOKUP(B13,'tweede wedstrijd'!B:D,3,FALSE)=0),"",VLOOKUP(B13,'tweede wedstrijd'!B:D,3,FALSE)) -> 7.5 | F13: =IF(ISERROR(VLOOKUP(B13,'tweede wedstrijd'!B:C,2,FALSE)=0),"",VLOOKUP(B13,'tweede wedstrijd'!B:C,2,FALSE)) -> 2835 | G13: =IF(ISERROR(VLOOKUP(B13,'derde wedstrijd'!B:E,3,FALSE)=0),"",VLOOKUP(B13,'derde wedstrijd'!B:E,3,FALSE)) -> 0 | H13: =IF(ISERROR(VLOOKUP(B13,'derde wedstrijd'!B:C,2,FALSE)=0),"",VLOOKUP(B13,'derde wedstrijd'!B:C,2,FALSE)) -> 0 | I13: =IF(ISERROR(VLOOKUP(B13,'vierde wedstrijd'!B:E,3,FALSE)=0),"",VLOOKUP(B13,'vierde wedstrijd'!B:E,3,FALSE)) -> 0 | J13: =IF(ISERROR(VLOOKUP(B13,'vierde wedstrijd'!B:C,2,FALSE)=0),"",VLOOKUP(B13,'vierde wedstrijd'!B:C,2,FALSE)) -> 0 | K13: 15.5 | L13: 2950
A14: 12 | C14: =IF(ISERROR(VLOOKUP(B14,'eerste wedstrijd'!B:E,3,FALSE)=0),"",VLOOKUP(B14,'eerste wedstrijd'!B:E,3,FALSE)) ->  | D14: =IF(ISERROR(VLOOKUP(B14,'eerste wedstrijd'!B:E,2,FALSE)=0),"",VLOOKUP(B14,'eerste wedstrijd'!B:E,2,FALSE)) ->  | E14: =IF(ISERROR(VLOOKUP(B14,'tweede wedstrijd'!B:D,3,FALSE)=0),"",VLOOKUP(B14,'tweede wedstrijd'!B:D,3,FALSE)) ->  | F14: =IF(ISERROR(VLOOKUP(B14,'tweede wedstrijd'!B:C,2,FALSE)=0),"",VLOOKUP(B14,'tweede wedstrijd'!B:C,2,FALSE)) ->  | G14: =IF(ISERROR(VLOOKUP(B14,'derde wedstrijd'!B:E,3,FALSE)=0),"",VLOOKUP(B14,'derde wedstrijd'!B:E,3,FALSE)) ->  | H14: =IF(ISERROR(VLOOKUP(B14,'derde wedstrijd'!B:C,2,FALSE)=0),"",VLOOKUP(B14,'derde wedstrijd'!B:C,2,FALSE)) ->  | I14: =IF(ISERROR(VLOOKUP(B14,'vierde wedstrijd'!B:E,3,FALSE)=0),"",VLOOKUP(B14,'vierde wedstrijd'!B:E,3,FALSE)) ->  | J14: =IF(ISERROR(VLOOKUP(B14,'vierde wedstrijd'!B:C,2,FALSE)=0),"",VLOOKUP(B14,'vierde wedstrijd'!B:C,2,FALSE)) ->  | K14: 0 | L14: 0
A15: 13 | C15: =IF(ISERROR(VLOOKUP(B15,'eerste wedstrijd'!B:E,3,FALSE)=0),"",VLOOKUP(B15,'eerste wedstrijd'!B:E,3,FALSE)) ->  | D15: =IF(ISERROR(VLOOKUP(B15,'eerste wedstrijd'!B:E,2,FALSE)=0),"",VLOOKUP(B15,'eerste wedstrijd'!B:E,2,FALSE)) ->  | E15: =IF(ISERROR(VLOOKUP(B15,'tweede wedstrijd'!B:D,3,FALSE)=0),"",VLOOKUP(B15,'tweede wedstrijd'!B:D,3,FALSE)) ->  | F15: =IF(ISERROR(VLOOKUP(B15,'tweede wedstrijd'!B:C,2,FALSE)=0),"",VLOOKUP(B15,'tweede wedstrijd'!B:C,2,FALSE)) ->  | G15: =IF(ISERROR(VLOOKUP(B15,'derde wedstrijd'!B:E,3,FALSE)=0),"",VLOOKUP(B15,'derde wedstrijd'!B:E,3,FALSE)) ->  | H15: =IF(ISERROR(VLOOKUP(B15,'derde wedstrijd'!B:C,2,FALSE)=0),"",VLOOKUP(B15,'derde wedstrijd'!B:C,2,FALSE)) ->  | I15: =IF(ISERROR(VLOOKUP(B15,'vierde wedstrijd'!B:E,3,FALSE)=0),"",VLOOKUP(B15,'vierde wedstrijd'!B:E,3,FALSE)) ->  | J15: =IF(ISERROR(VLOOKUP(B15,'vierde wedstrijd'!B:C,2,FALSE)=0),"",VLOOKUP(B15,'vierde wedstrijd'!B:C,2,FALSE)) ->  | K15: 0 | L15: 0
A16: 14
A17: 15
A18: 16

Sheet eerste wedstrijd
B1: NAAM. | C1: Gr | D1: Punten | E1: Plaats
A2: 1 | B2: P. Lintermans | C2: =F2-G2 -> 10600 | D2: 1 | E2: 14 | F2: 12050 | G2: 1450
A3: 2 | B3: M. Hoskins | C3: =F3-G3 -> 3720 | D3: 2 | E3: 13 | F3: 5170 | G3: 1450
A4: 3 | B4: H. v Helmond | C4: 2965 | D4: 3 | E4: 15 | F4: 4415 | G4: 1450
A5: 4 | B5: T. Mastbroek | C5: 2125 | D5: 4 | E5: 19 | F5: 3575 | G5: 1450
A6: 5 | B6: M. v Lierop | C6: 1395 | D6: 5 | E6: 17 | F6: 2845 | G6: 1450
A7: 6 | B7: J. v Haaren | C7: 1280 | D7: 5.5 | E7: 20 | F7: 2730 | G7: 1450
A8: 7 | B8: W. Seijkens | C8: 1205 | D8: 6 | E8: 24 | F8: 2655 | G8: 1450
A9: 8 | B9: T. Hoefnagels | C9: 815 | D9: 6.5 | E9: 18 | F9: 2265 | G9: 1450
A10: 9 | B10: B. Bots | C10: 135 | D10: 7 | E10: 21 | F10: 1585 | G10: 1450
A11: 10 | B11: H. v d Akker | C11: 135 | D11: 7 | E11: 22 | F11: 1585 | G11: 1450
A12: 11 | B12: H. Verbaarschot | C12: 115 | D12: 8 | E12: 23 | F12: 1565 | G12: 1450
A13: 12 | G13: 1450

Sheet tweede wedstrijd
B1: NAAM. | C1: Gr | D1: Punten | E1: Plaats
A2: 1 | B2: H. v d Akker | C2: 21210 | D2: 1 | E2: 38 | G2: 1450
A3: 2 | B3: M. Hoskins | C3: =F3-G3 -> 15000 | D3: 2 | E3: 29 | F3: 16450 | G3: 1450
A4: 3 | B4: T. Mastbroek | C4: 13090 | D4: 3 | E4: 40 | F4: 14540 | G4: 1450
A5: 4 | B5: P. Lintermans | C5: 12780 | D5: 4 | E5: 39 | F5: 14230 | G5: 1450
A6: 5 | B6: J. v Haaren | C6: 7915 | D6: 5 | E6: 37 | F6: 9365 | G6: 1450
A7: 6 | B7: H. v Helmond | C7: 7225 | D7: 5.5 | E7: 24 | F7: 8675 | G7: 1450
A8: 7 | B8: M. v Lierop | C8: 4710 | D8: 6 | E8: 30 | F8: 6160 | G8: 1450
A9: 8 | B9: T. Hoefnagels | C9: 4080 | D9: 6.5 | E9: 31 | F9: 5530 | G9: 1450
A10: 9 | B10: B. Bots | C10: 3165 | D10: 7 | E10: 35 | F10: 4615 | G10: 1450
A11: 10 | B11: H. Verbaarschot | C11: 2835 | D11: 7.5 | E11: 23 | F11: 4285 | G11: 1450
A12: 11 | B12: W. Seijkens | C12: 0 | D12: 9 | E12: 32 | G12: 1450
A13: 12 | G13: 1450

Sheet derde wedstrijd
B1: NAAM. | C1: Gr | D1: Punten | E1: Plaats
A2: 1 | B2: P. Lintermans
A3: 2 | B3: M. Hoskins
A4: 3 | B4: H. v Helmond
A5: 4 | B5: T. Mastbroek
A6: 5 | B6: M. v Lierop
A7: 6 | B7: J. v Haaren
A8: 7 | B8: W. Seijkens
A9: 8 | B9: T. Hoefnagels
A10: 9 | B10: B. Bots
A11: 10 | B11: H. v d Akker
A12: 11 | B12: H. Verbaarschot
A13: 12 | B13: J. Verwei

Sheet vierde wedstrijd
B1: NAAM. | C1: Gr | D1: Punten | E1: Plaats
A2: 1 | B2: P. Lintermans
A3: 2 | B3: M. Hoskins
A4: 3 | B4: H. v Helmond
A5: 4 | B5: T. Mastbroek
A6: 5 | B6: M. v Lierop
A7: 6 | B7: J. v Haaren
A8: 7 | B8: W. Seijkens
A9: 8 | B9: T. Hoefnagels
A10: 9 | B10: B. Bots
A11: 10 | B11: H. v d Akker
A12: 11 | B12: H. Verbaarschot
A13: 12 | B13: J. Verwei
